[Event "*** Titled Tuesday 3|2 Blitz"]
[Site "Chess.com"]
[Date "2016.05.03"]
[Round "6"]
[White "Mornar1951"]
[Black "Boryboy"]
[Result "0-1"]
[WhiteElo "2498"]
[BlackElo "2541"]
[TimeControl "180+2"]
[EndTime "18:16:24 PDT"]
[Termination "Boryboy won by checkmate"]

1. c4 {[%clk 0:03:01.8]} 1... e6 {[%clk 0:03:00.7]} 2. g3 {[%clk 0:03:02]} 2...
d5 {[%clk 0:03:01.6]} 3. Bg2 {[%clk 0:03:03.6]} 3... Nf6 {[%clk 0:03:02.8]} 4.
Nf3 {[%clk 0:03:04.9]} 4... dxc4 {[%clk 0:03:03.9]} 5. Qa4+ {[%clk 0:03:05]}
5... Nbd7 {[%clk 0:02:57.7]} 6. Qxc4 {[%clk 0:03:05.3]} 6... a6 {[%clk 0:02:59]}
7. Qc2 {[%clk 0:03:06.2]} 7... Bd6 {[%clk 0:02:47.2]} 8. O-O {[%clk 0:03:01.8]}
8... O-O {[%clk 0:02:47.9]} 9. Nc3 {[%clk 0:02:59]} 9... Rb8 {[%clk 0:02:46.7]}
10. b3 {[%clk 0:02:52.2]} 10... c5 {[%clk 0:02:44.1]} 11. Bb2 {[%clk 0:02:42.4]}
11... b5 {[%clk 0:02:45]} 12. Ng5 {[%clk 0:02:43.2]} 12... h6 {[%clk 0:02:36.7]}
13. Nge4 {[%clk 0:02:41.7]} 13... Be7 {[%clk 0:02:34.7]} 14. a4 {[%clk
0:02:36.6]} 14... Bb7 {[%clk 0:02:27]} 15. axb5 {[%clk 0:02:22.4]} 15... axb5
{[%clk 0:02:28.9]} 16. d3 {[%clk 0:02:14.7]} 16... Nd5 {[%clk 0:02:10.6]} 17.
Nxd5 {[%clk 0:02:02.2]} 17... exd5 {[%clk 0:02:05.2]} 18. Nc3 {[%clk 0:02:02.3]}
18... d4 {[%clk 0:02:06.4]} 19. Ne4 {[%clk 0:01:57.8]} 19... Qb6 {[%clk
0:02:03.6]} 20. Rfc1 {[%clk 0:01:46.6]} 20... Rbc8 {[%clk 0:02:00.5]} 21. Qd1
{[%clk 0:01:33.2]} 21... Nf6 {[%clk 0:01:54.5]} 22. Nxf6+ {[%clk 0:01:28.5]}
22... Bxf6 {[%clk 0:01:56.4]} 23. Bxb7 {[%clk 0:01:13.3]} 23... Qxb7 {[%clk
0:01:58.3]} 24. e4 {[%clk 0:01:10.9]} 24... dxe3 {[%clk 0:01:57.6]} 25. Bxf6
{[%clk 0:01:11.8]} 25... exf2+ {[%clk 0:01:58.5]} 26. Kxf2 {[%clk 0:01:13.2]}
26... gxf6 {[%clk 0:01:59.3]} 27. Qg4+ {[%clk 0:01:13.8]} 27... Kh8 {[%clk
0:02:00.6]} 28. Qf4 {[%clk 0:01:09.4]} 28... Kg7 {[%clk 0:02:00.5]} 29. Qg4+
{[%clk 0:01:09.9]} 29... Kh8 {[%clk 0:02:01]} 30. Qh5 {[%clk 0:01:06]} 30... Kg7
{[%clk 0:01:53.1]} 31. Rxc5 {[%clk 0:01:06.8]} 31... Rxc5 {[%clk 0:01:50.5]} 32.
Qxc5 {[%clk 0:01:08.7]} 32... Rc8 {[%clk 0:01:51.9]} 33. Ra7 {[%clk 0:00:59.6]}
33... Qb8 {[%clk 0:01:50.1]} 34. Qd4 {[%clk 0:00:47]} 34... Rc2+ {[%clk
0:01:50.5]} 35. Kf3 {[%clk 0:00:41.9]} 35... h5 {[%clk 0:01:35]} 36. Qd7 {[%clk
0:00:31.5]} 36... Qf8 {[%clk 0:01:25.2]} 37. Qxb5 {[%clk 0:00:31.9]} 37... Qc8
{[%clk 0:01:23.8]} 38. Qd7 {[%clk 0:00:28.4]} 38... Qf8 {[%clk 0:01:18.8]} 39.
Qd5 {[%clk 0:00:25.6]} 39... Qe8 {[%clk 0:01:18]} 40. Qe4 {[%clk 0:00:22.6]}
40... Qc8 {[%clk 0:01:19.2]} 41. g4 {[%clk 0:00:19.7]} 41... Rxh2 {[%clk
0:01:12.1]} 42. Kg3 {[%clk 0:00:17.7]} 42... Qb8+ {[%clk 0:01:07.9]} 43. Kf3
{[%clk 0:00:16.2]} 43... Rh3+ {[%clk 0:01:05.8]} 44. Kg2 {[%clk 0:00:14.2]}
44... Qh2+ {[%clk 0:01:06.7]} 45. Kf1 {[%clk 0:00:15]} 45... Qc2 {[%clk
0:00:35.5]} 46. gxh5 {[%clk 0:00:12.4]} 46... Qd1+ {[%clk 0:00:34.6]} 47. Kf2
{[%clk 0:00:13.1]} 47... Rh2+ {[%clk 0:00:35.8]} 48. Kg3 {[%clk 0:00:13]} 48...
Qg1+ {[%clk 0:00:37]} 49. Kf3 {[%clk 0:00:13.8]} 49... Qf2+ {[%clk 0:00:33.7]}
50. Kg4 {[%clk 0:00:14]} 50... Rg2+ {[%clk 0:00:35.3]} 51. Kh3 {[%clk
0:00:14.3]} 51... Qg3# {[%clk 0:00:36.6]} 0-1

[Event "*** Titled Tuesday 3|2 Blitz"]
[Site "Chess.com"]
[Date "2016.05.03"]
[Round "6"]
[White "Silent_Terror"]
[Black "jk13"]
[Result "0-1"]
[WhiteElo "2559"]
[BlackElo "2442"]
[TimeControl "180+2"]
[EndTime "18:16:28 PDT"]
[Termination "jk13 won by resignation"]

1. e4 {[%clk 0:03:01.9]} 1... e5 {[%clk 0:03:00.7]} 2. Nf3 {[%clk 0:03:02.5]}
2... Nc6 {[%clk 0:03:02.4]} 3. Bb5 {[%clk 0:03:03.1]} 3... Nf6 {[%clk
0:03:03.3]} 4. O-O {[%clk 0:03:03.5]} 4... Nxe4 {[%clk 0:03:04.4]} 5. Re1 {[%clk
0:03:03.6]} 5... Nd6 {[%clk 0:03:05.2]} 6. Bxc6 {[%clk 0:02:48.6]} 6... dxc6
{[%clk 0:03:02]} 7. Nxe5 {[%clk 0:02:49.7]} 7... Be7 {[%clk 0:03:03.5]} 8. d4
{[%clk 0:02:50.7]} 8... O-O {[%clk 0:03:02.4]} 9. Bf4 {[%clk 0:02:48.9]} 9...
Nf5 {[%clk 0:02:50.2]} 10. c3 {[%clk 0:02:48]} 10... c5 {[%clk 0:02:43.9]} 11.
d5 {[%clk 0:02:40.7]} 11... Bd6 {[%clk 0:02:41.8]} 12. c4 {[%clk 0:02:40]} 12...
Ne7 {[%clk 0:02:40.4]} 13. Nc3 {[%clk 0:02:37.9]} 13... Ng6 {[%clk 0:02:34.6]}
14. Nxg6 {[%clk 0:02:36.3]} 14... hxg6 {[%clk 0:02:36.1]} 15. Bxd6 {[%clk
0:02:36.4]} 15... cxd6 {[%clk 0:02:36.6]} 16. Qf3 {[%clk 0:02:34.9]} 16... Bf5
{[%clk 0:02:32.7]} 17. Qf4 {[%clk 0:02:28.9]} 17... a6 {[%clk 0:02:25.4]} 18.
Re3 {[%clk 0:02:26]} 18... Rb8 {[%clk 0:02:18]} 19. g4 {[%clk 0:02:21.2]} 19...
Qh4 {[%clk 0:02:14.6]} 20. Rg3 {[%clk 0:02:13.8]} 20... b5 {[%clk 0:02:13.3]}
21. Qxd6 {[%clk 0:02:08.1]} 21... Bxg4 {[%clk 0:02:05.3]} 22. Qf4 {[%clk
0:01:57]} 22... f5 {[%clk 0:02:06.4]} 23. f3 {[%clk 0:01:54.8]} 23... g5 {[%clk
0:02:07.4]} 24. Qc7 {[%clk 0:01:53.3]} 24... Bh3 {[%clk 0:01:44.3]} 25. cxb5
{[%clk 0:01:27.6]} 25... f4 {[%clk 0:01:39.1]} 26. Rxh3 {[%clk 0:01:18]} 26...
Qxh3 {[%clk 0:01:41]} 27. Rf1 {[%clk 0:01:08.8]} 27... axb5 {[%clk 0:01:38.5]}
28. Qxc5 {[%clk 0:01:09.8]} 28... g4 {[%clk 0:01:33.4]} 29. d6 {[%clk
0:01:02.2]} 29... g3 {[%clk 0:01:24.8]} 30. Qd5+ {[%clk 0:01:01.8]} 30... Kh8
{[%clk 0:01:23.5]} 31. Qd2 {[%clk 0:00:54.8]} 31... Rf6 {[%clk 0:01:03]} 32.
hxg3 {[%clk 0:00:44.2]} 32... Rh6 {[%clk 0:00:42.8]} 33. Qg2 {[%clk 0:00:43.9]}
33... Qxg2+ {[%clk 0:00:36.5]} 34. Kxg2 {[%clk 0:00:44.9]} 34... Rxd6 {[%clk
0:00:35.8]} 35. Ne4 {[%clk 0:00:43.7]} 35... Rg6 {[%clk 0:00:30.9]} 36. g4
{[%clk 0:00:41.8]} 36... Rc6 {[%clk 0:00:26.8]} 37. Rf2 {[%clk 0:00:28.5]} 37...
Rbc8 {[%clk 0:00:27.3]} 38. Nc3 {[%clk 0:00:17.6]} 38... Rc5 {[%clk 0:00:21.8]}
39. Rd2 {[%clk 0:00:16.5]} 39... b4 {[%clk 0:00:22.8]} 40. Ne4 {[%clk
0:00:10.1]} 40... Rc2 {[%clk 0:00:22.7]} 41. Kf1 {[%clk 0:00:05.2]} 41... Rxd2
{[%clk 0:00:22.8]} 42. Nxd2 {[%clk 0:00:07.1]} 42... Rc2 {[%clk 0:00:23.3]} 43.
Ke1 {[%clk 0:00:06.9]} 43... Rxb2 {[%clk 0:00:23.9]} 44. Nc4 {[%clk 0:00:06.3]}
44... Rxa2 {[%clk 0:00:23.7]} 45. Ne5 {[%clk 0:00:08]} 45... Kh7 {[%clk
0:00:21.8]} 46. Nd3 {[%clk 0:00:08.8]} 46... b3 {[%clk 0:00:22.7]} 47. Kd1
{[%clk 0:00:09.4]} 47... g5 {[%clk 0:00:22.3]} 48. Kc1 {[%clk 0:00:10.3]} 48...
Rc2+ {[%clk 0:00:23.5]} 49. Kb1 {[%clk 0:00:11.3]} 49... Kg7 {[%clk 0:00:24.4]}
50. Ne1 {[%clk 0:00:12.1]} 50... Rd2 {[%clk 0:00:24.3]} 51. Kc1 {[%clk
0:00:12.8]} 51... b2+ {[%clk 0:00:24.6]} 52. Kxd2 {[%clk 0:00:13.1]} 52... b1=Q
{[%clk 0:00:25.5]} 53. Nd3 {[%clk 0:00:15]} 0-1

[Event "*** Titled Tuesday 3|2 Blitz"]
[Site "Chess.com"]
[Date "2016.05.03"]
[Round "6"]
[White "Lying-Ted"]
[Black "Aguiar94"]
[Result "0-1"]
[WhiteElo "2251"]
[BlackElo "2388"]
[TimeControl "180+2"]
[EndTime "18:16:39 PDT"]
[Termination "Aguiar94 won by checkmate"]

1. e4 {[%clk 0:03:01.9]} 1... c5 {[%clk 0:03:00]} 2. Nf3 {[%clk 0:03:00.4]} 2...
e6 {[%clk 0:03:01.4]} 3. b3 {[%clk 0:02:59.1]} 3... Nc6 {[%clk 0:02:59.5]} 4.
Bb2 {[%clk 0:02:59.2]} 4... d6 {[%clk 0:03:00.2]} 5. Bb5 {[%clk 0:02:59.3]} 5...
Ne7 {[%clk 0:02:59.3]} 6. O-O {[%clk 0:02:55.1]} 6... a6 {[%clk 0:02:58.6]} 7.
Be2 {[%clk 0:02:50]} 7... e5 {[%clk 0:02:57.7]} 8. c3 {[%clk 0:02:49.8]} 8... g6
{[%clk 0:02:56.8]} 9. d4 {[%clk 0:02:50.5]} 9... exd4 {[%clk 0:02:57.5]} 10.
cxd4 {[%clk 0:02:50.9]} 10... Bg7 {[%clk 0:02:59]} 11. Nbd2 {[%clk 0:02:46.5]}
11... Nxd4 {[%clk 0:02:34.5]} 12. Nxd4 {[%clk 0:02:45.8]} 12... cxd4 {[%clk
0:02:33.7]} 13. Nf3 {[%clk 0:02:46.4]} 13... Nc6 {[%clk 0:02:32.5]} 14. Nxd4
{[%clk 0:02:46]} 14... Qf6 {[%clk 0:02:15.6]} 15. Nxc6 {[%clk 0:02:00.1]} 15...
Qxb2 {[%clk 0:02:14.2]} 16. Qxd6 {[%clk 0:01:55.3]} 16... bxc6 {[%clk
0:01:24.8]} 17. Qxc6+ {[%clk 0:01:54.3]} 17... Ke7 {[%clk 0:01:26.3]} 18. Qxa8
{[%clk 0:01:52.2]} 18... Qxe2 {[%clk 0:01:25]} 19. Rfe1 {[%clk 0:01:46.3]} 19...
Qb5 {[%clk 0:01:22.3]} 20. Rac1 {[%clk 0:01:27.4]} 20... Bd7 {[%clk 0:01:09.4]}
21. Qa7 {[%clk 0:01:28]} 21... Rd8 {[%clk 0:00:26.7]} 22. Red1 {[%clk
0:01:22.9]} 22... Be5 {[%clk 0:00:24.9]} 23. Rd5 {[%clk 0:01:15.9]} 23... Bb8
{[%clk 0:00:18.5]} 24. Qe3 {[%clk 0:00:48.6]} 24... Qb7 {[%clk 0:00:18.3]} 25.
Qg5+ {[%clk 0:00:46.3]} 25... f6 {[%clk 0:00:19.1]} 26. Qh6 {[%clk 0:00:46.4]}
26... Rf8 {[%clk 0:00:09.6]} 27. Qxh7+ {[%clk 0:00:34.4]} 27... Rf7 {[%clk
0:00:10.8]} 28. Qxg6 {[%clk 0:00:35.7]} 28... Be6 {[%clk 0:00:12.1]} 29. Rdc5
{[%clk 0:00:32.1]} 29... Bd6 {[%clk 0:00:12.4]} 30. Rc6 {[%clk 0:00:29.4]} 30...
a5 {[%clk 0:00:12.5]} 31. Qh5 {[%clk 0:00:20]} 31... Be5 {[%clk 0:00:13.6]} 32.
Qd1 {[%clk 0:00:20.3]} 32... Rg7 {[%clk 0:00:13.6]} 33. g3 {[%clk 0:00:19.4]}
33... Kf7 {[%clk 0:00:14.7]} 34. f4 {[%clk 0:00:18.6]} 34... Bxf4 {[%clk
0:00:15.7]} 35. R1c3 {[%clk 0:00:15.8]} 35... Be5 {[%clk 0:00:16.5]} 36. Rc2
{[%clk 0:00:15.1]} 36... Ke7 {[%clk 0:00:17.5]} 37. Qd3 {[%clk 0:00:15.2]} 37...
Bd7 {[%clk 0:00:17.9]} 38. Qd5 {[%clk 0:00:13.8]} 38... Bxc6 {[%clk 0:00:18.7]}
39. Rxc6 {[%clk 0:00:15.7]} 39... Qd7 {[%clk 0:00:19.2]} 40. Qc5+ {[%clk
0:00:15.8]} 40... Kf7 {[%clk 0:00:20.5]} 41. Qc4+ {[%clk 0:00:15.8]} 41... Kg6
{[%clk 0:00:21.6]} 42. Kg2 {[%clk 0:00:14.5]} 42... Qd2+ {[%clk 0:00:22.2]} 43.
Kf3 {[%clk 0:00:15.6]} 43... Qd1+ {[%clk 0:00:22.2]} 44. Qe2 {[%clk 0:00:15.6]}
44... Qh1+ {[%clk 0:00:22.9]} 45. Ke3 {[%clk 0:00:15.7]} 45... Kh6 {[%clk
0:00:21.9]} 46. Rc2 {[%clk 0:00:13.1]} 46... Rd7 {[%clk 0:00:21.9]} 47. Rd2
{[%clk 0:00:12.9]} 47... Rc7 {[%clk 0:00:21.7]} 48. Qf3 {[%clk 0:00:13.2]} 48...
Qe1+ {[%clk 0:00:21.4]} 49. Re2 {[%clk 0:00:13.9]} 49... Rc3# {[%clk 0:00:21.8]}
0-1

[Event "*** Titled Tuesday 3|2 Blitz"]
[Site "Chess.com"]
[Date "2016.05.03"]
[Round "6"]
[White "andryusha"]
[Black "bugsbunny444"]
[Result "1-0"]
[WhiteElo "2203"]
[BlackElo "2355"]
[TimeControl "180+2"]
[EndTime "18:16:48 PDT"]
[Termination "andryusha won by resignation"]

1. e4 {[%clk 0:03:01.9]} 1... e6 {[%clk 0:03:01.1]} 2. d4 {[%clk 0:03:02.3]}
2... d5 {[%clk 0:03:03]} 3. Nc3 {[%clk 0:03:02.1]} 3... Nf6 {[%clk 0:03:04.3]}
4. Bg5 {[%clk 0:03:02.1]} 4... Bb4 {[%clk 0:03:05]} 5. e5 {[%clk 0:03:01.6]}
5... h6 {[%clk 0:03:06.3]} 6. Bd2 {[%clk 0:03:00.6]} 6... Bxc3 {[%clk
0:03:07.4]} 7. bxc3 {[%clk 0:03:00.9]} 7... Ne4 {[%clk 0:03:09]} 8. Bd3 {[%clk
0:03:02]} 8... Nxd2 {[%clk 0:03:09.9]} 9. Qxd2 {[%clk 0:03:03]} 9... c5 {[%clk
0:03:10.8]} 10. f4 {[%clk 0:03:03.9]} 10... Qa5 {[%clk 0:02:53.2]} 11. dxc5
{[%clk 0:03:00.3]} 11... Nd7 {[%clk 0:02:49.7]} 12. Nf3 {[%clk 0:02:55.1]} 12...
Nxc5 {[%clk 0:02:49.2]} 13. Nd4 {[%clk 0:02:53]} 13... Bd7 {[%clk 0:02:47.5]}
14. O-O {[%clk 0:02:41.4]} 14... Rc8 {[%clk 0:02:40.5]} 15. f5 {[%clk 0:02:42]}
15... Nxd3 {[%clk 0:02:37.8]} 16. fxe6 {[%clk 0:02:42.9]} 16... Bxe6 {[%clk
0:02:16.7]} 17. Nxe6 {[%clk 0:02:34.8]} 17... Qxc3 {[%clk 0:01:33.9]} 18. Nxg7+
{[%clk 0:02:29.6]} 18... Kf8 {[%clk 0:01:34.6]} 19. Ne6+ {[%clk 0:00:57.4]}
19... Ke7 {[%clk 0:01:28.2]} 20. Qxd3 {[%clk 0:00:35.8]} 20... Qxd3 {[%clk
0:01:19.7]} 21. cxd3 {[%clk 0:00:36.9]} 21... fxe6 {[%clk 0:01:17.6]} 22. Rf6
{[%clk 0:00:29.8]} 22... Rc3 {[%clk 0:01:11.9]} 23. Raf1 {[%clk 0:00:28.1]}
23... Rh7 {[%clk 0:01:05]} 24. Rf8 {[%clk 0:00:28.7]} 24... Kd7 {[%clk
0:00:35.5]} 25. Rb8 {[%clk 0:00:28.2]} 25... Kc6 {[%clk 0:00:31.5]} 26. Rc8+
{[%clk 0:00:28.4]} 26... Rc7 {[%clk 0:00:29.7]} 27. Rxc7+ {[%clk 0:00:25.8]}
27... Kxc7 {[%clk 0:00:30.9]} 28. Rf7+ {[%clk 0:00:26.6]} 28... Kc6 {[%clk
0:00:31.1]} 29. Re7 {[%clk 0:00:27.7]} 29... Rxd3 {[%clk 0:00:23.9]} 30. Rxe6+
{[%clk 0:00:28.6]} 30... Kc5 {[%clk 0:00:20.2]} 31. Rxh6 {[%clk 0:00:28.1]}
31... b5 {[%clk 0:00:13.3]} 32. Rh7 {[%clk 0:00:25.3]} 32... a5 {[%clk 0:00:14]}
33. Rc7+ {[%clk 0:00:25.7]} 33... Kd4 {[%clk 0:00:09.7]} 34. e6 {[%clk
0:00:26.9]} 34... Re3 {[%clk 0:00:10.3]} 35. e7 {[%clk 0:00:27.5]} 35... b4
{[%clk 0:00:10.7]} 36. h4 {[%clk 0:00:28.2]} 36... a4 {[%clk 0:00:10.5]} 37. h5
{[%clk 0:00:28.6]} 37... b3 {[%clk 0:00:07.6]} 38. axb3 {[%clk 0:00:29.6]} 38...
axb3 {[%clk 0:00:09.5]} 39. h6 {[%clk 0:00:29.5]} 39... b2 {[%clk 0:00:06.9]}
40. Rb7 {[%clk 0:00:17.7]} 40... Rxe7 {[%clk 0:00:03.5]} 41. Rxb2 {[%clk
0:00:18.5]} 41... Rh7 {[%clk 0:00:03.2]} 42. Rb6 {[%clk 0:00:18.7]} 42... Ke5
{[%clk 0:00:04.2]} 43. g4 {[%clk 0:00:18.7]} 43... Kf4 {[%clk 0:00:05.2]} 44.
Rg6 {[%clk 0:00:19.5]} 44... d4 {[%clk 0:00:05]} 45. Kf2 {[%clk 0:00:19.4]}
45... d3 {[%clk 0:00:05.7]} 46. g5 {[%clk 0:00:20.1]} 46... Kf5 {[%clk
0:00:05.9]} 47. Rg7 {[%clk 0:00:20.5]} 47... Rh8 {[%clk 0:00:05.4]} 48. Ke3
{[%clk 0:00:21.6]} 48... Rd8 {[%clk 0:00:04.7]} 49. Kd2 {[%clk 0:00:21.8]} 49...
Ke6 {[%clk 0:00:03.7]} 50. h7 {[%clk 0:00:22.8]} 50... Rh8 {[%clk 0:00:03.3]}
51. g6 {[%clk 0:00:23.5]} 1-0

[Event "*** Titled Tuesday 3|2 Blitz"]
[Site "Chess.com"]
[Date "2016.05.03"]
[Round "6"]
[White "sandropozo"]
[Black "GianmarcoVaR"]
[Result "1-0"]
[WhiteElo "2285"]
[BlackElo "2326"]
[TimeControl "180+2"]
[EndTime "18:17:11 PDT"]
[Termination "sandropozo won by resignation"]

1. d4 {[%clk 0:03:00.3]} 1... Nf6 {[%clk 0:03:00.5]} 2. c4 {[%clk 0:03:01.1]}
2... e6 {[%clk 0:03:01.2]} 3. Nf3 {[%clk 0:03:00.7]} 3... b6 {[%clk 0:02:59.9]}
4. Nc3 {[%clk 0:02:59.2]} 4... Bb4 {[%clk 0:02:57.4]} 5. Bg5 {[%clk 0:02:58.7]}
5... Bb7 {[%clk 0:02:54.4]} 6. e3 {[%clk 0:02:59.4]} 6... h6 {[%clk 0:02:53.5]}
7. Bh4 {[%clk 0:03:00]} 7... g5 {[%clk 0:02:25]} 8. Bg3 {[%clk 0:02:59.3]} 8...
Ne4 {[%clk 0:02:25.9]} 9. Qc2 {[%clk 0:02:59.4]} 9... d6 {[%clk 0:02:23.3]} 10.
Bd3 {[%clk 0:02:49]} 10... Bxc3+ {[%clk 0:02:23.4]} 11. bxc3 {[%clk 0:02:48.4]}
11... f5 {[%clk 0:02:19.8]} 12. d5 {[%clk 0:02:49]} 12... Na6 {[%clk 0:02:12.3]}
13. Bxe4 {[%clk 0:02:30.6]} 13... fxe4 {[%clk 0:02:08.8]} 14. Qxe4 {[%clk
0:02:31.9]} 14... Qf6 {[%clk 0:02:07.2]} 15. Qxe6+ {[%clk 0:02:31.7]} 15... Qxe6
{[%clk 0:02:08]} 16. dxe6 {[%clk 0:02:33.3]} 16... Bxf3 {[%clk 0:02:07.8]} 17.
gxf3 {[%clk 0:02:34]} 17... Ke7 {[%clk 0:02:09.1]} 18. f4 {[%clk 0:02:28]} 18...
Kxe6 {[%clk 0:02:08.2]} 19. fxg5 {[%clk 0:02:28.1]} 19... hxg5 {[%clk
0:02:08.8]} 20. O-O-O {[%clk 0:02:15.2]} 20... g4 {[%clk 0:02:01]} 21. Rd4
{[%clk 0:02:13.8]} 21... Rag8 {[%clk 0:02:01.2]} 22. e4 {[%clk 0:01:55]} 22...
Nc5 {[%clk 0:01:52]} 23. Re1 {[%clk 0:01:52.9]} 23... Rh5 {[%clk 0:01:27.5]} 24.
Rd5 {[%clk 0:01:32.2]} 24... Rxd5 {[%clk 0:01:12.1]} 25. cxd5+ {[%clk
0:01:24.5]} 25... Kf7 {[%clk 0:01:04.6]} 26. Kc2 {[%clk 0:01:22.9]} 26... Nd7
{[%clk 0:00:37.3]} 27. Kd3 {[%clk 0:01:20.5]} 27... Re8 {[%clk 0:00:37.4]} 28.
Kd4 {[%clk 0:01:08]} 28... Ne5 {[%clk 0:00:35.4]} 29. Bxe5 {[%clk 0:01:07]}
29... dxe5+ {[%clk 0:00:27]} 30. Ke3 {[%clk 0:01:01.1]} 30... Rh8 {[%clk
0:00:28.4]} 31. Rg1 {[%clk 0:01:00.1]} 31... Rh4 {[%clk 0:00:28.8]} 32. Rg3
{[%clk 0:00:49.5]} 32... Ke7 {[%clk 0:00:26.7]} 33. f3 {[%clk 0:00:46.5]} 33...
gxf3 {[%clk 0:00:26.9]} 34. Kxf3 {[%clk 0:00:38.7]} 34... Rxh2 {[%clk
0:00:27.4]} 35. Rg7+ {[%clk 0:00:38.7]} 35... Kd6 {[%clk 0:00:27.5]} 36. Rg6+
{[%clk 0:00:39.4]} 36... Kd7 {[%clk 0:00:27.9]} 37. Re6 {[%clk 0:00:34.6]} 37...
Rh3+ {[%clk 0:00:27.4]} 38. Kg4 {[%clk 0:00:31.8]} 38... Rxc3 {[%clk 0:00:28.1]}
39. Rxe5 {[%clk 0:00:32.9]} 39... a5 {[%clk 0:00:29]} 40. Rh5 {[%clk 0:00:32.3]}
40... b5 {[%clk 0:00:20.2]} 41. Kf5 {[%clk 0:00:32.5]} 41... Rc2 {[%clk
0:00:18.5]} 42. e5 {[%clk 0:00:28.3]} 42... Rf2+ {[%clk 0:00:17.3]} 43. Ke4
{[%clk 0:00:29.1]} 43... Rxa2 {[%clk 0:00:18.1]} 44. Rh7+ {[%clk 0:00:29.6]}
44... Kc8 {[%clk 0:00:19.1]} 45. e6 {[%clk 0:00:29.9]} 45... a4 {[%clk
0:00:16.5]} 46. Kd4 {[%clk 0:00:31]} 46... Kb7 {[%clk 0:00:16.4]} 47. d6 {[%clk
0:00:30]} 47... Kc6 {[%clk 0:00:05.2]} 48. d7 {[%clk 0:00:21.9]} 48... Rd2+
{[%clk 0:00:06]} 49. Kc3 {[%clk 0:00:21.8]} 49... Rd6 {[%clk 0:00:07]} 50. Rh8
{[%clk 0:00:19.2]} 50... Rxd7 {[%clk 0:00:07]} 51. exd7 {[%clk 0:00:19.7]} 51...
Kxd7 {[%clk 0:00:08.9]} 52. Kb4 {[%clk 0:00:20.7]} 1-0

[Event "*** Titled Tuesday 3|2 Blitz"]
[Site "Chess.com"]
[Date "2016.05.03"]
[Round "6"]
[White "chito89"]
[Black "Newlight1"]
[Result "1/2-1/2"]
[WhiteElo "2584"]
[BlackElo "2248"]
[TimeControl "180+2"]
[EndTime "18:17:21 PDT"]
[Termination "Game drawn by agreement"]

1. e4 {[%clk 0:02:52.4]} 1... c5 {[%clk 0:02:59]} 2. Nf3 {[%clk 0:02:50.3]} 2...
Nc6 {[%clk 0:02:57.5]} 3. Bb5 {[%clk 0:02:50.7]} 3... Qb6 {[%clk 0:02:57.7]} 4.
Bxc6 {[%clk 0:02:50]} 4... Qxc6 {[%clk 0:02:59.6]} 5. Nc3 {[%clk 0:02:50.5]}
5... e6 {[%clk 0:02:59.7]} 6. O-O {[%clk 0:02:51]} 6... a6 {[%clk 0:02:58]} 7.
Re1 {[%clk 0:02:40.5]} 7... d6 {[%clk 0:02:04.3]} 8. d4 {[%clk 0:02:39.1]} 8...
cxd4 {[%clk 0:01:58.2]} 9. Nxd4 {[%clk 0:02:40.6]} 9... Qc7 {[%clk 0:01:59.7]}
10. a4 {[%clk 0:02:26.6]} 10... Nf6 {[%clk 0:01:56.9]} 11. a5 {[%clk 0:02:23.9]}
11... Be7 {[%clk 0:01:53.9]} 12. Na4 {[%clk 0:02:18.4]} 12... Qxa5 {[%clk
0:01:52.8]} 13. Be3 {[%clk 0:02:10.7]} 13... Qc7 {[%clk 0:01:47.6]} 14. Nb3
{[%clk 0:01:37.4]} 14... O-O {[%clk 0:01:45.8]} 15. Nb6 {[%clk 0:01:29]} 15...
Rb8 {[%clk 0:01:41.2]} 16. Ra4 {[%clk 0:01:28.5]} 16... Bd7 {[%clk 0:01:37.9]}
17. Rc4 {[%clk 0:01:22.4]} 17... Bc6 {[%clk 0:01:36.9]} 18. Na5 {[%clk
0:01:18.3]} 18... Rfd8 {[%clk 0:01:34.2]} 19. Qa1 {[%clk 0:01:04.7]} 19... Bf8
{[%clk 0:01:21.3]} 20. h3 {[%clk 0:01:00.9]} 20... d5 {[%clk 0:01:18]} 21. exd5
{[%clk 0:00:59.7]} 21... exd5 {[%clk 0:01:19.9]} 22. Rh4 {[%clk 0:00:53]} 22...
d4 {[%clk 0:01:09.3]} 23. Bxd4 {[%clk 0:00:20.5]} 23... Rxd4 {[%clk 0:01:07.8]}
24. Rxd4 {[%clk 0:00:22.1]} 24... Bc5 {[%clk 0:01:02.6]} 25. Nxc6 {[%clk
0:00:19.3]} 25... bxc6 {[%clk 0:00:48.6]} 26. Nd7 {[%clk 0:00:11.8]} 26... Nxd7
{[%clk 0:00:33.3]} 27. Rde4 {[%clk 0:00:12.7]} 27... Nf6 {[%clk 0:00:31.2]} 28.
R4e2 {[%clk 0:00:14]} 28... Qb6 {[%clk 0:00:31.3]} 29. c3 {[%clk 0:00:15.5]}
29... h6 {[%clk 0:00:29.3]} 30. b4 {[%clk 0:00:16.7]} 30... Bd6 {[%clk
0:00:29.9]} 31. Qd1 {[%clk 0:00:15.6]} 31... Rd8 {[%clk 0:00:27.4]} 32. Rd2
{[%clk 0:00:15]} 32... Qc7 {[%clk 0:00:25.9]} 33. Kh1 {[%clk 0:00:15.2]} 33...
Nd5 {[%clk 0:00:12.2]} 34. Qf3 {[%clk 0:00:13.8]} 34... Bf4 {[%clk 0:00:10.8]}
35. Rde2 {[%clk 0:00:14.5]} 35... Nf6 {[%clk 0:00:07.9]} 36. g3 {[%clk
0:00:12.8]} 36... Bd2 {[%clk 0:00:09]} 37. Rd1 {[%clk 0:00:12.2]} 37... Bg5
{[%clk 0:00:10.4]} 38. Ra1 {[%clk 0:00:11.4]} 38... Qc8 {[%clk 0:00:10.7]} 39.
Kg2 {[%clk 0:00:09.6]} 39... Nd5 {[%clk 0:00:10.7]} 40. Rae1 {[%clk 0:00:08.9]}
40... Bf6 {[%clk 0:00:10.6]} 41. Rc2 {[%clk 0:00:05.2]} 41... Qd7 {[%clk
0:00:10.2]} 42. Rd1 {[%clk 0:00:05.5]} 42... Qc8 {[%clk 0:00:10.2]} 43. Re1
{[%clk 0:00:06.6]} 43... Qd7 {[%clk 0:00:10.1]} 44. Re4 {[%clk 0:00:07.6]} 44...
Qc8 {[%clk 0:00:09.5]} 45. Rc4 {[%clk 0:00:08.7]} 45... Qd7 {[%clk 0:00:10.1]}
46. Re2 {[%clk 0:00:10.2]} 46... Re8 {[%clk 0:00:10.7]} 47. Rd2 {[%clk
0:00:09.2]} 47... Re5 {[%clk 0:00:08.4]} 48. Rc5 {[%clk 0:00:08.9]} 48... Rf5
{[%clk 0:00:09.1]} 49. Qg4 {[%clk 0:00:07.9]} 49... h5 {[%clk 0:00:08.6]} 50.
Qd1 {[%clk 0:00:06.2]} 50... Bxc3 {[%clk 0:00:08]} 51. Rxc3 {[%clk 0:00:06.6]}
51... Nxc3 {[%clk 0:00:07]} 52. Rxd7 {[%clk 0:00:05.9]} 52... Nxd1 {[%clk
0:00:07.8]} 53. Rxd1 {[%clk 0:00:07.6]} 53... Rb5 {[%clk 0:00:08.8]} 54. Rd4
{[%clk 0:00:08.9]} 54... c5 {[%clk 0:00:09.7]} 55. bxc5 {[%clk 0:00:10.2]} 55...
Rxc5 {[%clk 0:00:11.6]} 56. Rd6 {[%clk 0:00:11.6]} 56... a5 {[%clk 0:00:11.8]}
57. Ra6 {[%clk 0:00:11]} 1/2-1/2